[Event "*** Titled Tuesday Blitz"]
[Site "Chess.com"]
[Date "2018.09.04"]
[Round "3"]
[White "TrimitziosP7"]
[Black "Squirlolz"]
[Result "1-0"]
[WhiteElo "2655"]
[BlackElo "2430"]
[TimeControl "180+2"]
[EndTime "14:13:04 PDT"]
[Termination "TrimitziosP7 won on time"]

1. Nf3 {[%clk 0:03:01.9]} 1... Nf6 {[%clk 0:02:59.6]} 2. c4 {[%clk 0:03:02.9]}
2... e6 {[%clk 0:03:00.7]} 3. g3 {[%clk 0:03:03.6]} 3... d5 {[%clk 0:03:01.8]}
4. Bg2 {[%clk 0:03:04.6]} 4... Be7 {[%clk 0:03:03.4]} 5. O-O {[%clk 0:03:05.7]}
5... O-O {[%clk 0:03:05]} 6. b3 {[%clk 0:03:06.9]} 6... d4 {[%clk 0:03:05.6]} 7.
Bb2 {[%clk 0:03:08]} 7... c5 {[%clk 0:03:07.2]} 8. e3 {[%clk 0:03:09.3]} 8...
Nc6 {[%clk 0:03:08.3]} 9. exd4 {[%clk 0:03:10.8]} 9... cxd4 {[%clk 0:03:10.2]}
10. Re1 {[%clk 0:03:12.3]} 10... Ng4 {[%clk 0:03:06.5]} 11. d3 {[%clk 0:03:12]}
11... f6 {[%clk 0:03:04.5]} 12. Ng5 {[%clk 0:02:46.7]} 12... Nge5 {[%clk
0:02:22.5]} 13. Nf3 {[%clk 0:02:44]} 13... Nf7 {[%clk 0:02:19.8]} 14. a3 {[%clk
0:02:44.1]} 14... a5 {[%clk 0:02:20.2]} 15. Nbd2 {[%clk 0:02:44.4]} 15... e5
{[%clk 0:02:20.3]} 16. Qe2 {[%clk 0:02:43.8]} 16... Re8 {[%clk 0:02:10.6]} 17.
h3 {[%clk 0:02:43.9]} 17... Bf8 {[%clk 0:02:10.2]} 18. Nh2 {[%clk 0:02:41.3]}
18... Be6 {[%clk 0:02:08.9]} 19. g4 {[%clk 0:02:39.9]} 19... Bd7 {[%clk
0:01:56.8]} 20. Nhf1 {[%clk 0:02:39.9]} 20... Ng5 {[%clk 0:01:56.5]} 21. Ng3
{[%clk 0:02:39.2]} 21... Ne6 {[%clk 0:01:56.9]} 22. Qf1 {[%clk 0:02:31.8]} 22...
Nf4 {[%clk 0:01:53.4]} 23. Be4 {[%clk 0:02:31.9]} 23... Qc7 {[%clk 0:01:50.7]}
24. Ne2 {[%clk 0:02:31.7]} 24... Nxe2+ {[%clk 0:01:49.2]} 25. Qxe2 {[%clk
0:02:33.6]} 25... Ne7 {[%clk 0:01:50.8]} 26. Nf1 {[%clk 0:02:29.7]} 26... Bc6
{[%clk 0:01:49.9]} 27. Ng3 {[%clk 0:02:29.7]} 27... Ng6 {[%clk 0:01:51]} 28. Bc1
{[%clk 0:02:27.6]} 28... Rab8 {[%clk 0:01:41.3]} 29. Bd2 {[%clk 0:02:13.8]}
29... Nf4 {[%clk 0:01:30.3]} 30. Qf1 {[%clk 0:02:09.3]} 30... b5 {[%clk
0:01:17.3]} 31. Bxf4 {[%clk 0:01:59]} 31... exf4 {[%clk 0:01:18.2]} 32. Bxc6
{[%clk 0:02:00.3]} 32... Qxc6 {[%clk 0:01:19.4]} 33. Ne4 {[%clk 0:02:01.6]}
33... a4 {[%clk 0:01:18.2]} 34. cxb5 {[%clk 0:02:01.3]} 34... Qxb5 {[%clk
0:01:16]} 35. b4 {[%clk 0:02:02.4]} 35... Rbc8 {[%clk 0:01:17.3]} 36. Rac1
{[%clk 0:02:02.6]} 36... f5 {[%clk 0:01:15.5]} 37. gxf5 {[%clk 0:02:02.9]} 37...
Qxf5 {[%clk 0:01:15.8]} 38. Qg2 {[%clk 0:02:00.9]} 38... f3 {[%clk 0:01:15.4]}
39. Qg4 {[%clk 0:02:01]} 39... Rxc1 {[%clk 0:01:00.1]} 40. Rxc1 {[%clk
0:01:58.2]} 40... Qf7 {[%clk 0:00:55.7]} 41. Rc6 {[%clk 0:01:49.6]} 41... h6
{[%clk 0:00:43.3]} 42. Nf6+ {[%clk 0:01:48.7]} 42... Kh8 {[%clk 0:00:44.4]} 43.
Nxe8 {[%clk 0:01:49.4]} 43... Qxe8 {[%clk 0:00:46.3]} 44. Qe6 {[%clk 0:01:49.2]}
44... Qh5 {[%clk 0:00:44]} 45. Rc8 {[%clk 0:01:43.7]} 45... Qg5+ {[%clk
0:00:38.1]} 46. Qg4 {[%clk 0:01:44]} 46... Qf6 {[%clk 0:00:39.2]} 47. h4 {[%clk
0:01:21.7]} 47... g6 {[%clk 0:00:27.7]} 48. Re8 {[%clk 0:01:08.4]} 48... Kh7
{[%clk 0:00:16]} 49. Re6 {[%clk 0:01:02.5]} 49... Qf7 {[%clk 0:00:15]} 50. Qe4
{[%clk 0:01:03.2]} 50... h5 {[%clk 0:00:13]} 51. Re8 {[%clk 0:00:57.7]} 51...
Bg7 {[%clk 0:00:06.5]} 52. Re7 {[%clk 0:00:50.2]} 52... Qf6 {[%clk 0:00:04.5]}
53. b5 {[%clk 0:00:48.4]} 53... Qb6 {[%clk 0:00:02.9]} 54. Re6 {[%clk
0:00:48.1]} 1-0

[Event "*** Titled Tuesday Blitz"]
[Site "Chess.com"]
[Date "2018.09.04"]
[Round "3"]
[White "tigra"]
[Black "Hamisandwich"]
[Result "0-1"]
[WhiteElo "2662"]
[BlackElo "2499"]
[TimeControl "180+2"]
[EndTime "14:13:12 PDT"]
[Termination "Hamisandwich won by resignation"]

1. e4 {[%clk 0:03:01.9]} 1... d6 {[%clk 0:02:58.5]} 2. d4 {[%clk 0:03:02.2]}
2... Nf6 {[%clk 0:02:59.1]} 3. Nc3 {[%clk 0:03:03]} 3... e5 {[%clk 0:03:00.6]}
4. Nf3 {[%clk 0:03:01.8]} 4... Nbd7 {[%clk 0:03:02]} 5. Bc4 {[%clk 0:03:02.6]}
5... Be7 {[%clk 0:03:03]} 6. O-O {[%clk 0:03:03.2]} 6... O-O {[%clk 0:03:04.5]}
7. Re1 {[%clk 0:03:04.3]} 7... a6 {[%clk 0:03:05.1]} 8. a4 {[%clk 0:03:00.1]}
8... b6 {[%clk 0:03:06.1]} 9. Nd5 {[%clk 0:02:55]} 9... Bb7 {[%clk 0:03:06.7]}
10. Nxe7+ {[%clk 0:02:55.7]} 10... Qxe7 {[%clk 0:03:08.6]} 11. Bd3 {[%clk
0:02:55]} 11... h6 {[%clk 0:02:52.7]} 12. c3 {[%clk 0:02:50.9]} 12... exd4
{[%clk 0:02:43.7]} 13. cxd4 {[%clk 0:02:48]} 13... Rfe8 {[%clk 0:02:16.9]} 14.
Nd2 {[%clk 0:02:08.8]} 14... c5 {[%clk 0:02:04.2]} 15. dxc5 {[%clk 0:02:09.2]}
15... Nxc5 {[%clk 0:01:39.6]} 16. Bb1 {[%clk 0:02:04.9]} 16... Rad8 {[%clk
0:01:38.5]} 17. Ra3 {[%clk 0:01:26.7]} 17... b5 {[%clk 0:01:01.4]} 18. axb5
{[%clk 0:01:25.4]} 18... axb5 {[%clk 0:01:03.3]} 19. Rg3 {[%clk 0:01:05.7]}
19... Kh8 {[%clk 0:00:52.7]} 20. b4 {[%clk 0:00:57.2]} 20... Na4 {[%clk
0:00:46.5]} 21. Nb3 {[%clk 0:00:51]} 21... d5 {[%clk 0:00:37.2]} 22. e5 {[%clk
0:00:17]} 22... Ne4 {[%clk 0:00:38.5]} 23. Qh5 {[%clk 0:00:12.1]} 23... Qxe5
{[%clk 0:00:26.8]} 24. Qxe5 {[%clk 0:00:06.2]} 24... Rxe5 {[%clk 0:00:28.7]} 25.
Rd3 {[%clk 0:00:06.3]} 25... Rde8 {[%clk 0:00:23.1]} 26. f3 {[%clk 0:00:05.6]}
26... Nec3 {[%clk 0:00:23.6]} 27. Rxe5 {[%clk 0:00:06.5]} 27... Rxe5 {[%clk
0:00:25.2]} 28. Bc2 {[%clk 0:00:04.3]} 28... Re1+ {[%clk 0:00:26.1]} 29. Kf2
{[%clk 0:00:05]} 29... Re2+ {[%clk 0:00:27.8]} 30. Kg3 {[%clk 0:00:06.4]} 30...
Rxc2 {[%clk 0:00:29.7]} 31. Bd2 {[%clk 0:00:07.4]} 31... Bc8 {[%clk 0:00:22.3]}
32. h3 {[%clk 0:00:07.9]} 32... Bf5 {[%clk 0:00:22.8]} 33. Re3 {[%clk
0:00:07.3]} 33... Kh7 {[%clk 0:00:16.7]} 34. Be1 {[%clk 0:00:07.3]} 34... Re2
{[%clk 0:00:15.2]} 35. Bf2 {[%clk 0:00:04.6]} 35... Rxe3 {[%clk 0:00:13.9]} 36.
Bxe3 {[%clk 0:00:06.5]} 36... Nb2 {[%clk 0:00:13]} 37. Bd4 {[%clk 0:00:06.9]}
37... Ne2+ {[%clk 0:00:13.6]} 38. Kf2 {[%clk 0:00:08.1]} 38... Nxd4 {[%clk
0:00:15.5]} 39. Nxd4 {[%clk 0:00:09.5]} 39... Bd7 {[%clk 0:00:15.5]} 40. Ke3
{[%clk 0:00:10.4]} 40... Nc4+ {[%clk 0:00:15.5]} 41. Kf4 {[%clk 0:00:11.6]}
41... f6 {[%clk 0:00:15.8]} 42. Nb3 {[%clk 0:00:11.5]} 42... g5+ {[%clk
0:00:16.9]} 43. Kg3 {[%clk 0:00:11.7]} 43... Ne3 {[%clk 0:00:16.1]} 44. Kf2
{[%clk 0:00:12.6]} 44... Nc2 {[%clk 0:00:17.2]} 45. Nc5 {[%clk 0:00:13.9]} 45...
Bf5 {[%clk 0:00:17.1]} 46. Na6 {[%clk 0:00:14.7]} 46... d4 {[%clk 0:00:17]} 47.
Ke2 {[%clk 0:00:15.1]} 47... Bc8 {[%clk 0:00:16.4]} 48. Nc7 {[%clk 0:00:14.4]}
48... Nxb4 {[%clk 0:00:16.9]} 49. Kd2 {[%clk 0:00:13.6]} 49... Bd7 {[%clk
0:00:17.5]} 50. Na8 {[%clk 0:00:13.3]} 50... Nd5 {[%clk 0:00:18.9]} 51. Nb6
{[%clk 0:00:13.2]} 51... Nxb6 {[%clk 0:00:19.9]} 0-1

[Event "*** Titled Tuesday Blitz"]
[Site "Chess.com"]
[Date "2018.09.04"]
[Round "3"]
[White "MikaelyanArman"]
[Black "BilodeauA"]
[Result "0-1"]
[WhiteElo "2677"]
[BlackElo "2782"]
[TimeControl "180+2"]
[EndTime "14:13:13 PDT"]
[Termination "BilodeauA won on time"]

1. e4 {[%clk 0:03:01.9]} 1... c5 {[%clk 0:02:58.5]} 2. Nc3 {[%clk 0:03:02.5]}
2... d6 {[%clk 0:02:58.7]} 3. Nf3 {[%clk 0:03:03]} 3... Nf6 {[%clk 0:02:58]} 4.
e5 {[%clk 0:03:04.2]} 4... dxe5 {[%clk 0:02:58.8]} 5. Nxe5 {[%clk 0:03:06.1]}
5... Nbd7 {[%clk 0:02:55.6]} 6. d4 {[%clk 0:03:06.1]} 6... e6 {[%clk 0:02:45.7]}
7. Bb5 {[%clk 0:03:03.4]} 7... a6 {[%clk 0:02:42.5]} 8. Bxd7+ {[%clk 0:03:03.1]}
8... Nxd7 {[%clk 0:02:35.6]} 9. Qh5 {[%clk 0:03:00.1]} 9... Nxe5 {[%clk
0:02:10.4]} 10. dxe5 {[%clk 0:02:59.4]} 10... Be7 {[%clk 0:02:11.1]} 11. O-O
{[%clk 0:02:51.4]} 11... O-O {[%clk 0:02:10.4]} 12. Be3 {[%clk 0:02:50.7]} 12...
b6 {[%clk 0:02:05.6]} 13. Rad1 {[%clk 0:02:39.9]} 13... Qc7 {[%clk 0:02:05.7]}
14. Ne4 {[%clk 0:02:33.9]} 14... g6 {[%clk 0:01:37.2]} 15. Qf3 {[%clk
0:02:33.6]} 15... Qxe5 {[%clk 0:01:20.4]} 16. Nf6+ {[%clk 0:02:21.3]} 16... Bxf6
{[%clk 0:01:21.7]} 17. Qxa8 {[%clk 0:02:21.6]} 17... Qxb2 {[%clk 0:01:21.8]} 18.
Bh6 {[%clk 0:02:11.9]} 18... Bg7 {[%clk 0:01:23.1]} 19. Bxg7 {[%clk 0:02:11.2]}
19... Kxg7 {[%clk 0:01:25]} 20. Qc6 {[%clk 0:01:45.2]} 20... Qxc2 {[%clk
0:01:03.1]} 21. Qxb6 {[%clk 0:01:44.2]} 21... Qxa2 {[%clk 0:01:04.2]} 22. Qxc5
{[%clk 0:01:34.7]} 22... Bb7 {[%clk 0:01:01.7]} 23. Rd7 {[%clk 0:01:27.7]} 23...
Bd5 {[%clk 0:00:56.1]} 24. Qd4+ {[%clk 0:01:26.6]} 24... Kg8 {[%clk 0:00:56.1]}
25. h4 {[%clk 0:01:25.7]} 25... h5 {[%clk 0:00:50.8]} 26. Re1 {[%clk 0:01:23.7]}
26... Qc2 {[%clk 0:00:42.4]} 27. Re3 {[%clk 0:01:16.3]} 27... a5 {[%clk
0:00:35.7]} 28. Rc3 {[%clk 0:01:09.7]} 28... Qb1+ {[%clk 0:00:36]} 29. Kh2
{[%clk 0:01:09.6]} 29... Qb8+ {[%clk 0:00:35.3]} 30. Rg3 {[%clk 0:01:06.1]}
30... Bc6 {[%clk 0:00:20.4]} 31. Re7 {[%clk 0:00:56.2]} 31... Bd5 {[%clk
0:00:21.8]} 32. f4 {[%clk 0:00:48.3]} 32... Qb1 {[%clk 0:00:23.4]} 33. Ra7
{[%clk 0:00:43.1]} 33... Qf5 {[%clk 0:00:12.4]} 34. Rg5 {[%clk 0:00:38.4]} 34...
Qc2 {[%clk 0:00:11.8]} 35. Rxa5 {[%clk 0:00:34.5]} 35... Rc8 {[%clk 0:00:11.2]}
36. f5 {[%clk 0:00:31]} 36... Qc7+ {[%clk 0:00:11.3]} 37. Rg3 {[%clk 0:00:26.5]}
37... Qxa5 {[%clk 0:00:11.7]} 38. fxg6 {[%clk 0:00:27.8]} 38... f5 {[%clk
0:00:12]} 39. Qf6 {[%clk 0:00:22.9]} 39... Qc7 {[%clk 0:00:10.3]} 40. g7 {[%clk
0:00:23.4]} 40... Qf4 {[%clk 0:00:11.5]} 41. Qg6 {[%clk 0:00:20.2]} 41... Qxh4+
{[%clk 0:00:12.4]} 42. Rh3 {[%clk 0:00:07.2]} 42... Qf4+ {[%clk 0:00:13.3]} 43.
Rg3 {[%clk 0:00:04.8]} 43... h4 {[%clk 0:00:13.8]} 0-1

[Event "*** Titled Tuesday Blitz"]
[Site "Chess.com"]
[Date "2018.09.04"]
[Round "3"]
[White "suyu28"]
[Black "ElHelvetico"]
[Result "0-1"]
[WhiteElo "2494"]
[BlackElo "2654"]
[TimeControl "180+2"]
[EndTime "14:13:15 PDT"]
[Termination "ElHelvetico won on time"]

1. d4 {[%clk 0:02:57.7]} 1... Nf6 {[%clk 0:03:00.4]} 2. c4 {[%clk 0:02:57.5]}
2... e6 {[%clk 0:02:59]} 3. g3 {[%clk 0:02:57]} 3... d5 {[%clk 0:02:59.2]} 4.
Nf3 {[%clk 0:02:56.7]} 4... Bb4+ {[%clk 0:03:00.1]} 5. Bd2 {[%clk 0:02:53.9]}
5... Be7 {[%clk 0:03:01.4]} 6. Bg2 {[%clk 0:02:53.2]} 6... O-O {[%clk
0:03:02.4]} 7. O-O {[%clk 0:02:53.6]} 7... c6 {[%clk 0:03:03.4]} 8. Qc2 {[%clk
0:02:49.3]} 8... Nbd7 {[%clk 0:03:01.6]} 9. Rc1 {[%clk 0:02:46.5]} 9... a5
{[%clk 0:02:58.7]} 10. Bf4 {[%clk 0:02:43.3]} 10... Nh5 {[%clk 0:02:50]} 11. Bd2
{[%clk 0:02:43.7]} 11... Nhf6 {[%clk 0:02:50.5]} 12. Be1 {[%clk 0:02:38.6]}
12... b5 {[%clk 0:02:46.8]} 13. cxb5 {[%clk 0:02:35.4]} 13... cxb5 {[%clk
0:02:48.7]} 14. Nbd2 {[%clk 0:02:27.1]} 14... Ba6 {[%clk 0:02:43.7]} 15. Qc7
{[%clk 0:02:23.1]} 15... Nb6 {[%clk 0:02:10.4]} 16. Qxd8 {[%clk 0:02:19]} 16...
Rfxd8 {[%clk 0:02:07.3]} 17. Ne5 {[%clk 0:02:01.2]} 17... Rdc8 {[%clk
0:01:33.8]} 18. Nc6 {[%clk 0:01:50.3]} 18... Bf8 {[%clk 0:01:07.8]} 19. Nxa5
{[%clk 0:01:47.5]} 19... b4 {[%clk 0:01:05.3]} 20. e4 {[%clk 0:01:31.5]} 20...
Bd3 {[%clk 0:01:00.7]} 21. Rxc8 {[%clk 0:01:23.7]} 21... Nxc8 {[%clk 0:00:59.8]}
22. Nab3 {[%clk 0:01:15.4]} 22... dxe4 {[%clk 0:00:48]} 23. Bf1 {[%clk
0:01:13.9]} 23... Bxf1 {[%clk 0:00:37.4]} 24. Kxf1 {[%clk 0:01:14.7]} 24... Nd6
{[%clk 0:00:37.8]} 25. Nc5 {[%clk 0:00:48.3]} 25... Nb5 {[%clk 0:00:34.4]} 26.
Ndxe4 {[%clk 0:00:40.2]} 26... Nxe4 {[%clk 0:00:28.7]} 27. Nxe4 {[%clk 0:00:39]}
27... Nxd4 {[%clk 0:00:30.3]} 28. Bd2 {[%clk 0:00:31.8]} 28... f5 {[%clk
0:00:21.1]} 29. Ng5 {[%clk 0:00:27.2]} 29... h6 {[%clk 0:00:19.5]} 30. Nh3
{[%clk 0:00:19.7]} 30... Nf3 {[%clk 0:00:18.7]} 31. Be3 {[%clk 0:00:19.4]} 31...
Nxh2+ {[%clk 0:00:19.6]} 32. Ke2 {[%clk 0:00:20.5]} 32... Ng4 {[%clk 0:00:20.6]}
33. Nf4 {[%clk 0:00:13.3]} 33... Kf7 {[%clk 0:00:19.4]} 34. Rc1 {[%clk
0:00:10.6]} 34... Rxa2 {[%clk 0:00:14.7]} 35. Rc7+ {[%clk 0:00:11.2]} 35... Kg8
{[%clk 0:00:11.2]} 36. Nxe6 {[%clk 0:00:08.6]} 36... Rxb2+ {[%clk 0:00:12.1]}
37. Kd3 {[%clk 0:00:07.6]} 37... Nxe3 {[%clk 0:00:07.8]} 38. fxe3 {[%clk
0:00:08.6]} 38... Rb3+ {[%clk 0:00:05.6]} 39. Kd4 {[%clk 0:00:08.5]} 39... Rc3
{[%clk 0:00:05.7]} 40. Rb7 {[%clk 0:00:05.6]} 40... Rc8 {[%clk 0:00:05.2]} 0-1

[Event "*** Titled Tuesday Blitz"]
[Site "Chess.com"]
[Date "2018.09.04"]
[Round "3"]
[White "jerom555888"]
[Black "platy3"]
[Result "1/2-1/2"]
[WhiteElo "2606"]
[BlackElo "2745"]
[TimeControl "180+2"]
[EndTime "14:13:18 PDT"]
[Termination "Game drawn by agreement"]

1. Nf3 {[%clk 0:03:01.9]} 1... d5 {[%clk 0:02:45.4]} 2. g3 {[%clk 0:03:03]} 2...
Nf6 {[%clk 0:02:45.3]} 3. Bg2 {[%clk 0:03:04.2]} 3... c5 {[%clk 0:02:46.9]} 4.
O-O {[%clk 0:03:04.2]} 4... Nc6 {[%clk 0:02:48.1]} 5. d4 {[%clk 0:03:04.7]} 5...
cxd4 {[%clk 0:02:43.1]} 6. Nxd4 {[%clk 0:03:03.9]} 6... e5 {[%clk 0:02:39.2]} 7.
Nxc6 {[%clk 0:03:03.6]} 7... bxc6 {[%clk 0:02:41.1]} 8. c4 {[%clk 0:03:05.5]}
8... Be7 {[%clk 0:02:40.3]} 9. Nc3 {[%clk 0:03:03.3]} 9... d4 {[%clk 0:02:35.9]}
10. Bxc6+ {[%clk 0:03:00.9]} 10... Bd7 {[%clk 0:02:37.3]} 11. Bxa8 {[%clk
0:02:59.8]} 11... Qxa8 {[%clk 0:02:37.7]} 12. Nd5 {[%clk 0:02:59.1]} 12... Nxd5
{[%clk 0:02:37.6]} 13. cxd5 {[%clk 0:03:01]} 13... Qxd5 {[%clk 0:02:38.5]} 14.
Qb3 {[%clk 0:02:55.1]} 14... Qa8 {[%clk 0:02:37.8]} 15. Bd2 {[%clk 0:02:43.9]}
15... O-O {[%clk 0:02:30.3]} 16. Rfc1 {[%clk 0:02:44.4]} 16... Rb8 {[%clk
0:02:25.3]} 17. Qc2 {[%clk 0:02:26.1]} 17... h5 {[%clk 0:02:17.3]} 18. Qc7
{[%clk 0:02:17]} 18... Bh3 {[%clk 0:02:16.2]} 19. f3 {[%clk 0:02:18.3]} 19...
Bf6 {[%clk 0:02:02.3]} 20. b3 {[%clk 0:02:19.3]} 20... e4 {[%clk 0:02:03]} 21.
Qc6 {[%clk 0:02:18]} 21... Qxc6 {[%clk 0:02:03]} 22. Rxc6 {[%clk 0:02:18.2]}
22... d3 {[%clk 0:02:03.2]} 23. Rxf6 {[%clk 0:02:09.4]} 23... gxf6 {[%clk
0:02:03.9]} 24. exd3 {[%clk 0:02:09]} 24... exf3 {[%clk 0:01:51.7]} 25. Kf2
{[%clk 0:02:05.1]} 25... Bg4 {[%clk 0:01:39.3]} 26. h3 {[%clk 0:01:56.1]} 26...
Bxh3 {[%clk 0:01:40.2]} 27. Kxf3 {[%clk 0:01:57.4]} 27... Bg4+ {[%clk 0:01:38]}
28. Kf2 {[%clk 0:01:55.3]} 28... Rd8 {[%clk 0:01:38.9]} 29. Be3 {[%clk
0:01:55.3]} 29... Rxd3 {[%clk 0:01:27.7]} 30. Bxa7 {[%clk 0:01:55.2]} 30... Rf3+
{[%clk 0:01:29.3]} 31. Kg2 {[%clk 0:01:54.7]} 31... Rc3 {[%clk 0:01:30.9]} 32.
Bf2 {[%clk 0:01:39.4]} 32... Rc2 {[%clk 0:01:26.8]} 33. b4 {[%clk 0:01:37.1]}
33... Rb2 {[%clk 0:01:24.9]} 34. a4 {[%clk 0:01:31.9]} 34... Rxb4 {[%clk
0:01:23.9]} 35. a5 {[%clk 0:01:33.3]} 35... Rb3 {[%clk 0:01:19]} 36. a6 {[%clk
0:01:29.4]} 36... Bf3+ {[%clk 0:01:20]} 37. Kf1 {[%clk 0:01:26.9]} 37... Rb8
{[%clk 0:00:53.9]} 38. a7 {[%clk 0:01:27.1]} 38... Re8 {[%clk 0:00:51.3]} 39.
Bd4 {[%clk 0:01:22.2]} 39... Kh7 {[%clk 0:00:46.8]} 40. Kf2 {[%clk 0:01:19.3]}
40... Ba8 {[%clk 0:00:45.3]} 41. Bxf6 {[%clk 0:01:19.4]} 41... Kg6 {[%clk
0:00:46.1]} 42. Bd4 {[%clk 0:01:19.3]} 42... Rd8 {[%clk 0:00:45.9]} 43. Ra6+
{[%clk 0:01:09.1]} 43... Kf5 {[%clk 0:00:45.5]} 44. Rf6+ {[%clk 0:01:01.3]}
44... Kg5 {[%clk 0:00:38.5]} 45. Rf4 {[%clk 0:00:58.8]} 45... Rd7 {[%clk
0:00:39.8]} 46. Ke3 {[%clk 0:00:56.8]} 46... f5 {[%clk 0:00:33.4]} 47. Kf2
{[%clk 0:00:56.8]} 47... Re7 {[%clk 0:00:28.8]} 48. Be3 {[%clk 0:00:57.2]} 48...
Kg6 {[%clk 0:00:28.1]} 49. Rb4 {[%clk 0:00:57.1]} 49... Rb7 {[%clk 0:00:24.1]}
50. Rxb7 {[%clk 0:00:54.1]} 50... Bxb7 {[%clk 0:00:25]} 51. Bf4 {[%clk
0:00:52.9]} 51... Kf6 {[%clk 0:00:24.4]} 52. Ke3 {[%clk 0:00:54.3]} 52... Ke6
{[%clk 0:00:25.6]} 53. Kd4 {[%clk 0:00:55.8]} 53... Bh1 {[%clk 0:00:22.8]} 54.
Kc5 {[%clk 0:00:56.4]} 54... Bg2 {[%clk 0:00:22.1]} 55. Kb6 {[%clk 0:00:55.1]}
55... Kd7 {[%clk 0:00:23.2]} 56. Kc5 {[%clk 0:00:56]} 56... Ke6 {[%clk 0:00:24]}
57. Kd4 {[%clk 0:00:57.2]} 57... Bh1 {[%clk 0:00:24.9]} 1/2-1/2

[Event "*** Titled Tuesday Blitz"]
[Site "Chess.com"]
[Date "2018.09.04"]
[Round "3"]
[White "lucasmito"]
[Black "JoakimVonAnd"]
[Result "0-1"]
[WhiteElo "2340"]
[BlackElo "2363"]
[TimeControl "180+2"]
[EndTime "14:13:27 PDT"]
[Termination "JoakimVonAnd won by resignation"]

1. e4 {[%clk 0:03:01.9]} 1... c6 {[%clk 0:02:54.5]} 2. d4 {[%clk 0:03:02.4]}
2... d5 {[%clk 0:02:56.4]} 3. Nc3 {[%clk 0:03:02.4]} 3... dxe4 {[%clk
0:02:55.8]} 4. Nxe4 {[%clk 0:03:03.4]} 4... Bf5 {[%clk 0:02:57.2]} 5. Ng3 {[%clk
0:03:04.9]} 5... Bg6 {[%clk 0:02:58.1]} 6. h4 {[%clk 0:03:06.8]} 6... h6 {[%clk
0:02:58.3]} 7. h5 {[%clk 0:03:08.7]} 7... Bh7 {[%clk 0:02:59.5]} 8. Nf3 {[%clk
0:03:10.4]} 8... Nf6 {[%clk 0:03:00.2]} 9. Bd3 {[%clk 0:03:12.3]} 9... Bxd3
{[%clk 0:03:01.3]} 10. Qxd3 {[%clk 0:03:14.2]} 10... e6 {[%clk 0:03:02.7]} 11.
Bd2 {[%clk 0:03:16.1]} 11... c5 {[%clk 0:03:03.9]} 12. O-O-O {[%clk 0:03:14.8]}
12... Nc6 {[%clk 0:03:04.9]} 13. Bc3 {[%clk 0:03:14.1]} 13... Qd5 {[%clk
0:03:06]} 14. dxc5 {[%clk 0:02:51.9]} 14... Qxd3 {[%clk 0:03:06.3]} 15. Rxd3
{[%clk 0:02:50]} 15... Bxc5 {[%clk 0:03:06.8]} 16. Nd4 {[%clk 0:02:51.3]} 16...
Nxd4 {[%clk 0:02:48.3]} 17. Bxd4 {[%clk 0:02:53.2]} 17... Bxd4 {[%clk
0:02:49.6]} 18. Rxd4 {[%clk 0:02:55.1]} 18... Rd8 {[%clk 0:02:50.6]} 19. Rhd1
{[%clk 0:02:52.5]} 19... Ke7 {[%clk 0:02:51.6]} 20. Rxd8 {[%clk 0:02:46.7]}
20... Rxd8 {[%clk 0:02:51.9]} 21. Rxd8 {[%clk 0:02:48.6]} 21... Kxd8 {[%clk
0:02:52.9]} 22. c4 {[%clk 0:02:48.4]} 22... Ng4 {[%clk 0:02:50.8]} 23. Ne4
{[%clk 0:02:39.9]} 23... Ke7 {[%clk 0:02:43.6]} 24. f3 {[%clk 0:02:39]} 24...
Ne3 {[%clk 0:02:43.4]} 25. c5 {[%clk 0:02:11.7]} 25... Nxg2 {[%clk 0:02:43.9]}
26. Kd2 {[%clk 0:02:12.4]} 26... Nf4 {[%clk 0:02:43.4]} 27. Ng3 {[%clk
0:02:10.7]} 27... Kf6 {[%clk 0:02:34.2]} 28. Ke3 {[%clk 0:02:09.8]} 28... Nd5+
{[%clk 0:02:35.2]} 29. Kd4 {[%clk 0:02:10.5]} 29... Kg5 {[%clk 0:02:32.6]} 30.
Ne4+ {[%clk 0:02:07.6]} 30... Kxh5 {[%clk 0:02:33.5]} 31. Nd6 {[%clk 0:02:09.5]}
31... b6 {[%clk 0:02:29.8]} 32. c6 {[%clk 0:02:09.9]} 32... Nc7 {[%clk
0:02:28.1]} 33. a4 {[%clk 0:02:03.8]} 33... Kg6 {[%clk 0:02:26.6]} 34. Nb5
{[%clk 0:02:03]} 34... Nd5 {[%clk 0:02:17.1]} 35. c7 {[%clk 0:01:40.1]} 35...
Nxc7 {[%clk 0:02:16.9]} 36. Nxc7 {[%clk 0:01:42]} 36... h5 {[%clk 0:02:18]} 37.
Nb5 {[%clk 0:01:17.1]} 37... Kf5 {[%clk 0:02:16.5]} 38. Ke3 {[%clk 0:01:14.7]}
38... a5 {[%clk 0:02:09.5]} 39. Nd6+ {[%clk 0:01:12.8]} 39... Ke5 {[%clk
0:02:10.8]} 40. Nxf7+ {[%clk 0:00:39.8]} 40... Kd5 {[%clk 0:02:10]} 41. Kd3
{[%clk 0:00:38.4]} 41... h4 {[%clk 0:02:05.6]} 42. Ng5 {[%clk 0:00:39.4]} 42...
e5 {[%clk 0:02:00.6]} 43. Nh3 {[%clk 0:00:37.9]} 43... g6 {[%clk 0:01:58.7]} 44.
b3 {[%clk 0:00:35.5]} 44... Kc5 {[%clk 0:01:58.6]} 45. Kc3 {[%clk 0:00:36.6]}
45... Kd5 {[%clk 0:01:59.5]} 46. Ng5 {[%clk 0:00:34.1]} 46... Kc5 {[%clk
0:01:58.5]} 47. Nh3 {[%clk 0:00:24.7]} 47... Kd5 {[%clk 0:01:57.3]} 48. Nf2
{[%clk 0:00:25.2]} 48... Kc5 {[%clk 0:01:54.6]} 49. Nh3 {[%clk 0:00:14.2]} 49...
Kd5 {[%clk 0:01:54.7]} 50. Ng5 {[%clk 0:00:15.1]} 50... Kc5 {[%clk 0:01:55.6]}
51. Ne4+ {[%clk 0:00:15.1]} 51... Kd5 {[%clk 0:01:56.8]} 52. Nf2 {[%clk
0:00:16]} 52... Kc5 {[%clk 0:01:35.9]} 53. Nh3 {[%clk 0:00:16]} 53... Kd5 {[%clk
0:01:35.1]} 54. b4 {[%clk 0:00:16.3]} 54... Ke6 {[%clk 0:01:09.6]} 55. bxa5
{[%clk 0:00:16]} 55... bxa5 {[%clk 0:01:10.9]} 56. Kc4 {[%clk 0:00:17.5]} 56...
Kf5 {[%clk 0:01:06.2]} 57. Kd5 {[%clk 0:00:11.9]} 57... g5 {[%clk 0:01:04.5]}
58. Kd6 {[%clk 0:00:11.1]} 58... g4 {[%clk 0:00:57.2]} 59. fxg4+ {[%clk
0:00:11.8]} 59... Kxg4 {[%clk 0:00:58.5]} 60. Nf2+ {[%clk 0:00:13.1]} 60... Kf3
{[%clk 0:00:59.2]} 61. Nh3 {[%clk 0:00:14]} 61... e4 {[%clk 0:00:59.7]} 62. Kd5
{[%clk 0:00:13.3]} 62... e3 {[%clk 0:01:00.4]} 63. Kd4 {[%clk 0:00:12.2]} 0-1